bitfinex/quotes_ETHUSD_20251012
["timestamp","ask_amount","ask_price","bid_price","bid_amount"]
[1760263186086,2.59352557,3855.8,3855.1,14.5]
[1760263186284,2.59357274,3855.7,3855.2,0.452]
[1760263186595,2.59363473,3855.6,3855.1,14.5]
[1760263186772,2.59396643,3855.1,3855.0,0.002]
[1760263187612,3.22756643,3855.1,3855.0,0.002]
[1760263188363,5.25164324,3855.1,3855.0,0.002]
[1760263188608,5.1478356,3854.7,3854.6,1e-08]
[1760263189312,5.55482657,3854.7,3854.6,1e-08]
[1760263189644,6.36972446,3854.7,3854.6,1e-08]
[1760263190730,5.96273349,3854.7,3854.6,1e-08]
[1760263192110,6.27473055,3854.7,3854.6,1e-08]
[1760263192318,3.22810483,3854.3,3854.2,0.002]
[1760263192525,5.46010189,3854.3,3854.2,0.002]
[1760263192826,6.86466756,3854.3,3854.2,0.002]
[1760263194243,5.14817215,3854.2,3854.1,1e-08]
[1760263194948,5.25230125,3854.2,3854.1,1e-08]
[1760263195450,5.25230125,3854.2,3853.8,0.002]
[1760263195451,5.14898022,3853.0,3852.9,0.002]
[1760263195654,5.92340773,3853.0,3852.9,0.002]
[1760263195978,5.14898022,3853.0,3852.9,0.002]
[1760263196180,5.66020831,3853.0,3852.9,0.002]
[1760263198948,3.74020831,3853.0,3852.9,0.002]
[1760263200350,3.22898022,3853.0,3852.9,0.002]
[1760263204486,2.59538022,3853.0,3852.9,0.002]
[1760263207078,4.0075771,3853.0,3852.9,0.002]
[1760263207805,4.1117119,3853.0,3852.9,0.002]
[1760263208367,3.33311502,3853.0,3852.9,0.002]
[1760263208609,0.40709115,3853.1,3852.9,0.002]
[1760263208610,1.92,3854.0,3852.9,0.002]
[1760263208810,2.59538022,3853.0,3852.9,0.002]
[1760263209318,0.40706774,3853.6,3852.9,0.002]
[1760263209474,2.59529306,3853.2,3852.9,0.002]
[1760263209676,2.59520202,3853.3,3852.9,0.002]
[1760263210090,2.59520202,3853.3,3852.9,1.75656035]
[1760263210316,2.59504346,3853.5,3852.9,1.75656035]
[1760263210610,2.59525633,3853.2,3852.9,0.002]
[1760263210917,0.40706774,3853.6,3852.9,0.002]
[1760263211148,2.59538022,3853.0,3852.9,0.002]
[1760263211276,0.40706774,3853.6,3852.9,0.002]
[1760263211483,2.59509077,3853.5,3852.9,0.002]
[1760263211676,2.59509077,3853.5,3852.9,1.75656034]
[1760263211918,2.59520608,3853.3,3852.9,1.75656034]
[1760263212281,2.59525084,3853.2,3852.9,1.75656034]
[1760263213414,2.59538022,3853.0,3852.9,1.75656034]
[1760263213775,2.59538022,3853.0,3852.9,0.002]
[1760263213977,2.59477221,3854.0,3852.9,0.002]
[1760263213978,2.59534157,3853.1,3852.9,0.002]
[1760263214719,0.6336,3853.8,3852.9,0.002]
[1760263214939,3.22898022,3853.0,3852.9,0.002]
[1760263215139,3.81140817,3853.0,3852.9,0.002]
[1760263216439,0.10412504,3853.7,3852.9,0.002]
[1760263216625,0.6336,3853.6,3852.9,0.002]
[1760263216940,2.59538022,3853.0,3852.9,0.002]
[1760263217637,2.59533336,3853.1,3852.9,0.002]
[1760263218219,2.59538022,3853.0,3852.9,0.002]
[1760263218719,0.6336,3853.7,3852.9,0.45]
[1760263218919,2.59468164,3854.1,3853.0,0.448]
[1760263219131,2.59481745,3853.9,3853.1,0.3045437]
[1760263219336,0.48897968,3854.4,3853.1,0.3045437]
[1760263219533,0.48897968,3854.4,3852.9,0.002]
[1760263219534,2.59465325,3854.1,3853.4,2.59506428]
[1760263219739,3.08342128,3854.4,3853.4,2.59506428]
[1760263220033,3.08342128,3854.4,3853.3,3.04316977]
[1760263220034,0.1296,3853.4,3853.3,3.04316977]
[1760263223548,0.1296,3853.4,3853.3,17.54316977]
[1760263223754,0.1296,3853.4,3853.3,14.5]
[1760263225418,0.1296,3853.4,3853.3,15.95]
[1760263226186,0.1296,3853.4,3853.2,1.92]
[1760263226348,2.59485834,3853.8,3853.2,1.92]
[1760263226549,2.59485834,3853.8,3853.2,19.01523894]
[1760263226850,2.59486079,3853.8,3853.2,19.01523894]
[1760263227168,3.22810483,3854.3,3852.9,0.002]
[1760263227467,0.6336,3854.1,3852.9,0.002]
[1760263227660,2.59531644,3853.1,3852.9,0.002]
[1760263227850,2.59538022,3853.0,3852.9,0.002]
[1760263228449,0.40699401,3854.1,3852.9,0.002]
[1760263228664,2.59528867,3853.2,3852.9,0.002]
[1760263228969,2.59532431,3853.1,3852.9,0.002]
[1760263230780,2.59538022,3853.0,3852.9,0.002]
[1760263232449,2.69438022,3853.0,3852.9,0.002]
[1760263233547,3.32798022,3853.0,3852.9,0.002]
[1760263233798,5.77694369,3853.0,3852.9,0.002]
[1760263234087,5.77694369,3853.0,3852.5,0.002]
[1760263234088,3.22924969,3852.6,3852.5,1e-08]
[1760263234249,5.14924969,3852.6,3852.5,1e-08]
[1760263234445,2.5959866,3852.1,3851.2,0.002]
[1760263234650,5.37142584,3851.3,3851.2,0.002]
[1760263235173,5.37142584,3851.3,3850.9,0.002]
[1760263235174,5.15032812,3851.0,3850.9,0.002]
[1760263235556,3.23039555,3850.9,3850.8,1e-08]
[1760263235759,3.23086767,3850.2,3850.1,0.002]
[1760263235987,5.15086767,3850.2,3850.1,0.002]
[1760263236290,6.03587234,3850.2,3850.1,0.002]
[1760263236494,0.4576,3850.2,3850.1,0.002]
[1760263236677,0.40740232,3850.5,3850.1,2.3796]
[1760263236987,0.1102,3850.5,3850.2,14.5]
[1760263237286,0.1102,3850.4,3850.2,14.5]
[1760263237457,0.1296,3850.2,3850.1,0.002]
[1760263237888,2.83706767,3850.2,3850.1,0.002]
[1760263238291,7.43235644,3853.9,3850.1,4.74463513]
[1760263238594,0.1102,3851.5,3850.2,0.47446351]
[1760263238893,0.1102,3851.4,3850.2,16.89446351]
[1760263239047,0.6336,3851.2,3850.2,14.5]
[1760263239253,0.1102,3851.1,3850.2,14.5]
[1760263239487,0.1102,3851.1,3850.2,17.09726568]
[1760263239788,0.1102,3851.1,3850.3,2.59719807]
[1760263240682,0.1102,3851.4,3850.5,2.59705735]
[1760263240891,0.1102,3851.7,3850.7,1.92]
[1760263241056,0.6336,3851.8,3851.0,2.59670306]
[1760263241251,0.3315,3852.0,3851.0,2.5966704]
[1760263241452,0.6336,3851.9,3851.1,2.59665733]
[1760263241877,0.1102,3851.8,3851.1,2.59665733]
[1760263242193,0.1102,3851.8,3851.0,2.59671449]
[1760263243387,0.6336,3851.9,3850.7,1.92]
[1760263243590,0.6336,3851.9,3851.0,2.59672482]
[1760263243591,0.1102,3851.7,3851.0,2.59672482]
[1760263243891,0.51740392,3851.7,3851.0,2.59672482]
[1760263244988,0.1102,3851.7,3851.0,2.59672482]
[1760263245626,0.40720108,3852.3,3851.1,0.47]
[1760263245778,2.59584545,3853.8,3851.5,1.92]
[1760263245985,2.59584545,3853.8,3852.1,2.59593853]
[1760263245986,0.52175797,3853.0,3852.1,2.59593853]
[1760263246194,0.52175797,3853.0,3852.1,14.5]
[1760263246392,0.1146,3853.6,3852.4,2.59573169]
[1760263246618,0.1146,3853.6,3852.1,2.59594565]
[1760263246619,0.1146,3853.5,3852.2,2.59586197]
[1760263246820,0.40708167,3853.3,3852.3,2.59583344]
[1760263246985,0.7482,3853.2,3852.3,2.59583344]
[1760263247184,0.1146,3853.2,3852.3,2.59583344]
[1760263247680,0.6336,3853.1,3852.3,2.59583344]
[1760263248121,0.001,3852.5,3852.3,2.59583344]
[1760263248810,0.1296,3852.3,3852.2,17.09589677]
[1760263249214,0.1296,3852.3,3852.2,19.01589677]
[1760263249384,0.1296,3852.3,3852.2,21.45508892]
[1760263253828,0.001,3852.5,3852.4,2.59578444]
[1760263254036,0.082,3854.4,3853.7,2.59490878]
[1760263254384,0.2002,3854.8,3853.7,2.59490878]
[1760263254589,0.001,3855.0,3853.7,19.48490878]
[1760263255200,0.6346,3855.0,3853.7,19.48490878]
[1760263255434,0.001,3855.0,3853.7,19.48490878]
[1760263255794,0.1306,3854.2,3853.7,19.48490878]
[1760263256010,0.001,3854.2,3853.7,19.61450878]
[1760263256295,0.001,3854.2,3853.7,19.74510878]
[1760263257827,0.001,3854.2,3853.7,20.37870878]
[1760263258001,0.001,3854.2,3853.7,22.67608325]
[1760263258592,0.001,3854.2,3853.7,21.91288325]
[1760263258786,0.001,3854.2,3853.7,21.78228325]
[1760263259827,0.001,3854.2,3853.7,19.39228325]
[1760263260063,0.001,3854.2,3853.7,21.76458325]
[1760263261945,0.001,3854.2,3853.7,21.31228325]
[1760263262144,0.001,3854.2,3853.7,21.76458325]
[1760263263940,0.001,3854.2,3853.7,22.39818325]
[1760263264143,1e-08,3854.6,3854.5,2.59437021]
[1760263264441,0.001,3855.0,3854.9,2.59410101]
[1760263264641,0.001,3855.4,3855.3,4.51383186]
[1760263264828,0.001,3855.4,3855.3,19.01383186]
[1760263265044,0.33917428,3857.5,3855.7,2.59356277]
[1760263265226,0.33917428,3857.5,3856.0,2.59336099]
[1760263265432,0.13391743,3857.4,3857.0,2.59262665]
[1760263265766,0.13391743,3857.4,3857.3,17.09248697]
[1760263266263,0.33917428,3857.5,3857.4,2.59241976]
[1760263266466,0.33917428,3857.5,3857.4,3.04471976]
[1760263267035,0.33917428,3857.5,3857.4,17.54471976]
[1760263267868,0.33917428,3857.5,3857.4,14.5]
[1760263268261,0.33917428,3857.5,3857.4,14.9523]
[1760263269478,0.33917428,3857.5,3857.4,17.54471976]
[1760263270446,0.33917428,3857.5,3857.4,18.77099564]
[1760263270447,0.03917428,3857.5,3857.4,18.77099564]
[1760263270656,0.003,3857.9,3857.5,5.14595255]
[1760263270986,0.003,3857.9,3857.5,3.04465255]
[1760263271352,0.003,3857.9,3857.5,17.54465255]
[1760263271880,0.003,3857.9,3857.5,20.09825255]
[1760263272055,0.003,3857.9,3857.5,22.48995363]
[1760263272465,1.0,3858.5,3858.0,2.59199162]
[1760263272664,0.525,3858.5,3858.4,2.82834787]
[1760263272865,1e-08,3858.6,3858.5,4.5116807]
[1760263273063,1e-08,3858.6,3858.5,19.9677807]
[1760263273359,1e-08,3858.6,3858.5,22.50657694]
[1760263274988,1e-08,3858.6,3858.5,21.87297694]
[1760263276602,1e-08,3858.6,3858.5,19.0116807]
[1760263276765,1e-08,3858.6,3858.5,19.3341807]
[1760263279865,1e-08,3858.6,3858.5,19.9677807]
[1760263280718,1e-08,3858.6,3858.5,19.4629807]
[1760263280917,1e-08,3858.6,3858.5,19.3341807]
[1760263281220,1e-08,3858.6,3858.5,21.55044022]
[1760263281382,1e-08,3858.6,3858.5,21.67924022]
[1760263281892,1e-08,3858.6,3858.5,14.5]
[1760263282091,1e-08,3858.6,3858.5,17.0916807]
[1760263282425,0.00100001,3858.6,3858.5,17.0916807]
[1760263282847,0.00100001,3858.6,3858.5,19.9677807]
[1760263283138,0.01694255,3859.0,3858.9,3.22501206]
[1760263283295,0.01694255,3859.0,3858.9,5.72666277]
[1760263283636,0.01694255,3859.0,3858.9,6.04816277]
[1760263283954,0.01694255,3859.0,3858.9,20.54816277]
[1760263284320,7.43235644,3863.5,3859.0,2.868319]
[1760263284642,10.41784388,3865.3,3863.5,32.58832664]
[1760263284643,1.0,3865.3,3863.5,32.58832664]
[1760263284844,1.0,3865.7,3865.6,2.58692052]
[1760263285008,0.00582072,3867.1,3865.6,2.58692052]
[1760263285009,0.94052644,3866.7,3866.6,4.50625148]
[1760263285201,0.12829734,3872.3,3866.7,3.27484414]
[1760263285509,0.48595003,3871.9,3871.8,2.58277803]
[1760263285708,1.0,3874.7,3873.2,2.58184446]
[1760263285931,1.0,3874.7,3873.2,2.10563594]
[1760263286131,0.4645,3873.6,3871.7,1.78020971]
[1760263286296,0.61602866,3873.5,3869.5,2.736]
[1760263286634,0.4645,3873.4,3870.1,0.6336]
[1760263286797,0.15152866,3873.5,3868.2,1.78020971]
[1760263286798,2.579345,3872.8,3868.2,1.78020971]
[1760263286994,0.4645,3872.7,3870.2,14.5]
[1760263287237,0.4645,3872.6,3870.2,14.5]
[1760263287419,0.4645,3872.5,3867.9,0.13511853]
[1760263287600,5.69216,3872.4,3867.9,0.13511853]
[1760263287800,30.0,3872.2,3868.0,14.5]
[1760263288041,3.000166,3872.3,3868.0,14.5]
[1760263288042,0.4645,3872.1,3868.0,14.5]
[1760263288246,0.4645,3872.0,3868.0,14.5]
[1760263288447,0.2189,3871.9,3869.0,2.58460206]
[1760263288651,2.694286,3873.6,3868.1,0.2278]
[1760263288944,0.37450726,3873.5,3868.8,2.5847149]
[1760263289102,2.58187242,3873.2,3868.9,0.454]
[1760263289309,2.58184446,3873.2,3868.9,0.454]
[1760263289507,3.028462,3873.0,3868.7,0.454]
[1760263289705,0.37450726,3873.5,3868.8,14.5]
[1760263289904,2.58297335,3871.6,3869.0,2.58464719]
[1760263290263,0.2189,3871.9,3869.1,0.454]
[1760263290540,0.83188661,3873.7,3869.3,1.92]
[1760263290748,0.83188661,3873.7,3869.7,14.5]
[1760263290902,12.816231,3873.6,3869.6,0.454]
[1760263291242,2.428132,3873.4,3869.0,0.454]
[1760263291443,2.58191113,3873.1,3869.1,14.5]
[1760263291605,2.58231012,3872.6,3869.2,2.374]
[1760263291807,0.4366,3872.8,3869.6,1.92]
[1760263292038,0.4366,3872.7,3869.7,0.454]
[1760263292648,1.92,3872.0,3867.9,2.58532434]
[1760263292822,2.58448658,3869.3,3867.7,0.454]
[1760263293027,2.5845372,3869.2,3867.7,0.454]
[1760263293207,0.6555,3869.7,3867.7,0.454]
[1760263293409,0.6555,3869.7,3867.0,3.03993647]
[1760263293632,0.4366,3869.7,3867.1,14.954]
[1760263293863,2.58493044,3868.6,3867.1,0.454]
[1760263294143,2.58478081,3868.8,3867.1,0.454]
[1760263294305,0.2189,3870.0,3867.1,0.454]
[1760263294705,0.2189,3871.4,3867.1,3.03988707]
[1760263294928,0.4366,3870.5,3867.4,1.92]
[1760263295132,0.4366,3870.5,3868.6,2.58485301]
[1760263295447,2.58415184,3869.8,3868.4,0.454]
[1760263295650,0.4366,3870.5,3868.8,2.5847552]
[1760263295824,0.4366,3870.5,3869.0,2.58461852]
[1760263296019,3.02026309,3870.5,3869.1,2.58456736]
[1760263296214,0.4366,3870.5,3868.4,2.374]
[1760263296414,0.4366,3870.4,3868.3,14.5]
[1760263296734,0.4366,3870.4,3868.4,2.374]
[1760263296934,0.4366,3870.4,3869.1,2.58452182]
[1760263297136,0.4366,3871.1,3868.4,1.92]
[1760263297437,0.2189,3871.4,3868.4,1.92]
[1760263297438,0.2189,3871.4,3869.1,0.454]
[1760263297651,2.58348641,3870.8,3869.4,2.58431495]
[1760263297852,0.2189,3871.4,3869.2,2.58451359]
[1760263297853,0.4366,3871.2,3869.2,2.58451359]
[1760263298056,0.4366,3871.2,3869.3,14.5]
[1760263298374,0.2189,3872.6,3869.4,0.454]
[1760263298531,2.5832417,3871.2,3869.4,0.454]
[1760263298871,0.4366,3871.8,3869.4,0.454]
[1760263299066,0.6336,3871.0,3868.8,0.454]
[1760263299278,0.6336,3870.8,3869.1,2.58454588]
[1760263299570,1.92,3871.6,3868.2,0.2278]
[1760263299571,0.6336,3870.6,3868.2,0.454]
[1760263299752,0.6336,3870.4,3868.2,3.03912194]
[1760263299932,2.58445547,3869.3,3868.2,0.454]
[1760263300139,1.92,3870.8,3867.5,14.5]
[1760263300140,0.6336,3869.6,3867.5,14.5]
[1760263300340,0.4366,3869.5,3866.5,0.454]
[1760263300585,0.6336,3868.1,3865.6,0.454]
[1760263300875,0.4366,3868.0,3865.6,0.454]
[1760263301077,2.58576819,3867.4,3865.6,0.454]
[1760263301423,0.4366,3867.3,3865.2,14.5]
[1760263301581,2.585989,3867.0,3865.5,3.04093454]
[1760263301778,0.4366,3867.3,3865.5,0.454]
[1760263301980,0.1288,3865.9,3865.3,0.1288]
[1760263302275,2.58615322,3866.8,3865.3,3.03139861]
[1760263302460,0.4366,3867.3,3865.3,0.4443]
[1760263302638,0.6336,3867.0,3865.3,3.03141095]
[1760263302839,0.6336,3867.2,3865.3,0.4443]
[1760263303062,2.58606668,3866.9,3865.7,2.58679537]
[1760263303274,0.4366,3867.3,3865.3,0.4443]
[1760263303449,2.58592844,3867.1,3866.1,2.5865755]
[1760263303648,0.6555,3867.9,3866.5,2.58630015]
[1760263303850,2.5857696,3867.4,3866.3,2.58643164]
[1760263304055,0.6336,3867.8,3865.8,0.4443]
[1760263304056,2.58583073,3867.3,3865.8,0.4443]
[1760263304275,2.58583073,3867.3,3866.2,2.58648881]
[1760263304454,2.58565318,3867.5,3866.1,2.58658235]
[1760263304455,0.4361,3867.4,3866.1,2.58658235]
[1760263304661,2.5859913,3867.0,3866.0,2.58664568]
[1760263305282,2.5859913,3867.0,3865.9,2.58671673]
[1760263305487,0.2189,3867.9,3864.2,3.22139441]
[1760263305488,0.6336,3866.8,3864.2,2.58779975]
[1760263305673,2.58648458,3866.3,3864.5,2.58765687]
[1760263305876,2.58661347,3866.1,3864.7,2.58751399]
[1760263306088,2.58645415,3866.3,3864.4,0.4443]
[1760263306089,2.58679516,3865.8,3864.4,0.4443]
[1760263306288,2.58724657,3865.2,3863.7,3.03245845]
[1760263306493,0.4706,3865.2,3863.0,0.4443]
[1760263306662,2.58736532,3865.0,3863.2,14.5]
[1760263306878,0.4706,3865.1,3863.2,14.5]
[1760263307216,0.40575246,3865.3,3863.7,2.58816682]
[1760263307389,0.4706,3865.2,3863.3,2.58840591]
[1760263307710,0.6336,3865.0,3863.2,14.5]
[1760263307862,0.6336,3865.0,3862.7,0.4443]
[1760263307863,1.1042,3864.9,3861.8,0.4443]
[1760263308063,1.1042,3864.9,3861.4,0.2199]
[1760263308064,0.6336,3864.2,3861.4,0.2199]
[1760263308264,0.40575246,3865.3,3861.3,0.4443]
[1760263308265,0.6336,3863.9,3861.5,14.5]
[1760263308494,0.2200692,3880.3,3860.7,0.2199]
[1760263308495,0.6336,3863.2,3860.7,0.2199]
[1760263308705,2.58925501,3862.2,3860.7,0.2199]
[1760263308954,2.58925501,3862.2,3860.8,17.09013675]
[1760263309076,2.58906975,3862.4,3860.8,14.5]
[1760263309403,0.4681,3862.6,3860.8,14.5]
[1760263309404,0.6336,3862.5,3860.8,14.5]
[1760263309707,0.4681,3863.3,3860.8,14.5]
[1760263309910,0.4681,3863.3,3860.9,0.4443]
[1760263310089,2.58886775,3862.7,3861.4,2.58970855]
[1760263310297,2.58892099,3862.7,3861.4,2.58972768]
[1760263310497,3.22185797,3863.7,3861.7,2.58951353]
[1760263310498,0.4681,3862.8,3861.7,2.58951353]
[1760263310716,0.4681,3863.6,3861.4,0.4443]
[1760263310915,2.58900005,3862.5,3861.3,2.58979239]
[1760263311115,0.4681,3862.6,3860.8,14.5]
[1760263311417,0.4681,3862.6,3861.1,2.58988353]
[1760263311603,2.58922783,3862.2,3861.1,2.58988353]
[1760263311801,2.58976559,3861.4,3860.0,2.59061985]
[1760263311973,0.1288,3860.8,3860.0,2.59064351]
[1760263312171,0.4681,3861.6,3859.8,0.4443]
[1760263312397,0.1288,3860.9,3860.7,2.59020075]
[1760263312747,0.1288,3860.9,3860.4,2.59040067]
[1760263313044,0.4681,3862.2,3860.0,0.1288]
[1760263313045,0.1288,3860.6,3860.0,0.1288]
[1760263313396,0.1288,3860.6,3860.5,2.59033803]
[1760263313689,0.1288,3860.6,3860.1,2.59058303]
[1760263313943,0.1288,3860.6,3860.1,0.4443]
[1760263314235,2.58924735,3862.2,3860.1,0.4443]
[1760263314236,0.4681,3862.6,3860.2,0.4443]
[1760263314434,2.58947139,3861.8,3860.7,2.5901451]
[1760263314601,3.0570421,3862.6,3860.2,0.4443]
[1760263314803,2.58927823,3862.1,3860.6,2.59020675]
[1760263315004,0.4681,3862.0,3860.0,1.92]
[1760263315624,0.40615137,3862.3,3860.1,0.6651]
[1760263315843,2.58919786,3862.2,3861.1,2.5898865]
[1760263316047,0.40615137,3862.3,3860.1,0.6651]
[1760263316333,2.58909708,3862.4,3861.3,2.58974746]
[1760263316500,2.58913721,3862.3,3861.4,2.58973069]
[1760263316702,0.4681,3862.5,3860.8,2.59008398]
[1760263317037,0.40613028,3862.8,3861.0,2.59000259]
[1760263317226,0.4681,3863.0,3861.1,14.9358]
[1760263317734,0.40606558,3863.5,3861.1,14.5]
[1760263317939,0.40606558,3863.5,3862.5,2.58898327]
[1760263318110,0.4681,3863.6,3862.8,2.58876151]
[1760263318312,0.4725,3864.4,3862.8,17.08877145]
[1760263318535,2.58790763,3864.2,3862.8,14.5]
[1760263318738,0.4725,3864.4,3862.8,14.5]
[1760263318942,0.4725,3864.4,3863.4,2.58833362]
[1760263319124,0.4725,3864.4,3862.9,2.58872867]
[1760263319325,0.4725,3865.1,3863.5,2.58827983]
[1760263319529,2.58756398,3864.7,3862.9,2.5886862]
[1760263319714,2.58771956,3864.5,3862.8,14.9358]
[1760263319919,2.58766444,3864.5,3863.5,2.58832553]
[1760263320117,2.5874594,3864.8,3862.8,14.9358]
[1760263320118,2.58745601,3864.8,3863.1,2.58853583]
[1760263320347,0.4725,3864.7,3862.8,14.5]
[1760263320664,2.58857794,3863.2,3862.8,14.5]
[1760263320980,2.58846938,3863.3,3862.8,14.5]
[1760263321353,1.92,3863.3,3862.8,14.5]
[1760263321550,0.2057,3863.8,3862.8,14.5]
[1760263321551,1.92,3863.8,3862.8,14.5]
[1760263321753,2.58824346,3863.7,3862.8,14.5]
[1760263321977,1.92,3863.6,3862.8,14.5]
[1760263322187,2.58828382,3863.6,3862.8,14.5]
[1760263322338,2.58886271,3862.7,3858.5,0.89259852]
[1760263322539,1.25920641,3862.4,3858.5,0.002]
[1760263322770,0.6336,3862.2,3858.5,0.002]
[1760263322977,0.6336,3862.2,3858.6,0.4358]
[1760263323140,1.92,3860.0,3858.6,0.4358]
[1760263323334,2.59047224,3860.3,3858.6,0.4358]
[1760263323566,1.92,3860.0,3858.7,14.5]
[1760263323869,2.59094766,3859.6,3858.5,0.002]
[1760263324069,0.1288,3858.6,3858.5,0.002]
[1760263324272,0.1288,3859.5,3858.9,0.1288]
[1760263324578,0.1288,3859.8,3859.0,14.9358]
[1760263324871,0.40630797,3861.3,3859.3,0.1288]
[1760263325078,0.1288,3860.0,3859.3,0.1288]
[1760263325303,0.2154,3861.7,3859.4,0.4358]
[1760263325582,0.1288,3860.7,3860.1,0.1288]
[1760263325749,2.589399,3861.9,3859.9,14.5]
[1760263325949,2.58986704,3861.3,3860.0,0.4358]
[1760263326150,0.40621006,3862.0,3860.1,0.1702]
[1760263326349,2.58987957,3861.2,3860.6,14.5]
[1760263326552,1.92,3861.1,3860.6,14.5]
[1760263326877,0.4707,3862.2,3860.6,14.5]
[1760263327080,2.5892649,3862.1,3860.6,14.5]
[1760263327378,0.4707,3862.2,3860.6,14.5]
[1760263327575,2.59013386,3860.9,3860.6,14.5]
[1760263327880,0.8767825,3862.4,3860.6,14.5]
[1760263328058,2.5900858,3860.9,3860.6,14.5]
[1760263328381,2.5900858,3860.9,3858.9,2.59136795]
[1760263328382,0.4707,3860.8,3858.7,0.4358]
[1760263328595,1.92,3860.0,3858.7,0.4358]
[1760263328767,2.59099845,3859.6,3859.4,14.5]
[1760263328969,2.59088536,3859.7,3859.4,14.5]
[1760263329275,2.59100919,3859.5,3859.4,14.5]
[1760263329476,2.59027094,3860.6,3859.4,14.5]
[1760263329477,0.4707,3860.8,3859.4,14.5]
[1760263329646,1.92,3859.7,3859.4,14.5]
[1760263329849,0.4707,3860.8,3859.4,14.9358]
[1760263330043,2.59061572,3860.1,3859.4,14.5]
[1760263330244,2.5906441,3860.1,3859.4,14.5]
[1760263330645,2.59053656,3860.3,3859.4,14.5]
[1760263330989,2.5906788,3860.0,3859.4,14.5]
[1760263331149,1.92,3860.4,3859.4,14.5]
[1760263331350,1.92,3860.1,3859.4,14.5]
[1760263331658,2.59061612,3860.1,3859.4,14.5]
[1760263331985,0.4707,3861.5,3859.4,17.52682322]
[1760263332187,1.92,3860.5,3859.5,2.59100313]
[1760263332386,2.59100817,3859.6,3859.4,14.5]
[1760263332547,2.59093123,3859.7,3859.4,14.5]
[1760263332996,0.4707,3861.0,3859.4,14.5]
[1760263333150,2.59054445,3860.2,3859.4,14.5]
[1760263333350,0.4707,3861.0,3859.4,14.5]
[1760263333546,0.4707,3861.0,3859.5,2.59100919]
[1760263333547,1.92,3860.5,3859.5,2.59100919]
[1760263333888,2.59039248,3860.5,3859.5,2.59100919]
[1760263334086,1.92,3860.1,3859.4,14.5]
[1760263334383,2.59065335,3860.1,3859.4,14.502]
[1760263334686,1.92,3860.4,3859.4,14.502]
[1760263334985,2.59067847,3860.0,3859.4,14.502]
[1760263335162,1.92,3860.1,3859.4,14.502]
[1760263335371,2.3907,3861.0,3859.4,14.502]
[1760263335556,1.92,3860.8,3859.4,17.09306668]
[1760263335753,0.1288,3859.6,3859.4,17.09306668]
[1760263335967,0.1288,3859.6,3859.5,3.02680919]
[1760263336191,0.1288,3859.9,3859.5,0.4358]
[1760263336391,0.1288,3859.9,3859.5,2.5910031]
[1760263336590,0.1288,3859.9,3859.5,3.02679757]
[1760263336801,0.1288,3859.9,3859.5,0.4358]
[1760263337102,0.1288,3859.9,3859.6,0.4358]
[1760263337268,0.1288,3859.9,3859.4,17.09306794]
[1760263337469,3.06074716,3861.0,3859.4,14.502]
[1760263337671,2.59080832,3859.8,3859.4,14.502]
[1760263338080,2.59090376,3859.7,3859.4,14.502]
[1760263338377,2.59091056,3859.7,3859.4,14.502]
[1760263338697,1.92,3860.1,3859.4,14.502]
[1760263338896,2.59100919,3859.5,3859.4,14.502]
[1760263339101,2.59094868,3859.6,3859.4,14.502]
[1760263339260,4.51100919,3859.5,3859.4,0.002]
[1760263339957,1.92,3859.5,3859.4,0.002]
[1760263340702,0.4707,3861.3,3859.4,0.4378]
[1760263340857,2.59020191,3860.8,3859.4,0.002]
[1760263341195,1.92,3860.8,3859.4,0.002]
[1760263341414,0.6336,3861.5,3859.4,0.002]
[1760263341415,1.92,3859.5,3859.4,0.002]
[1760263343511,4.51100919,3859.5,3859.4,0.002]
[1760263343689,4.98170919,3859.5,3859.4,0.002]
[1760263344981,5.61530919,3859.5,3859.4,0.002]
[1760263345169,4.98170919,3859.5,3859.4,0.002]
[1760263345963,5.61530919,3859.5,3859.4,0.002]
[1760263346522,4.98170919,3859.5,3859.4,0.002]
[1760263347408,5.61530919,3859.5,3859.4,0.002]
[1760263349522,4.98170919,3859.5,3859.4,0.002]
[1760263349816,0.4374,3860.1,3859.4,0.002]
[1760263350015,1.92,3859.6,3859.4,0.002]
[1760263350185,1.92,3859.7,3859.4,0.002]
[1760263350615,2.59089635,3859.7,3859.4,0.002]
[1760263350992,2.59095427,3859.6,3859.4,0.002]
[1760263351192,2.59088527,3859.7,3859.4,0.002]
[1760263351730,4.51081198,3859.8,3859.4,0.002]
[1760263351887,2.59100919,3859.5,3859.4,0.002]
[1760263352088,4.51100919,3859.5,3859.4,0.002]
[1760263352328,2.59059915,3860.2,3859.4,0.002]
[1760263352626,0.4374,3860.3,3859.4,0.002]
[1760263352627,1.92,3859.7,3859.4,0.002]
[1760263352833,2.59070001,3860.0,3859.4,0.002]
[1760263352834,2.59100919,3859.5,3859.4,0.002]
[1760263352989,1.92,3859.6,3859.4,0.002]
[1760263353514,1.92,3859.7,3859.4,0.002]
[1760263353830,2.59088436,3859.7,3859.4,0.002]
[1760263354319,2.59096307,3859.6,3859.4,0.002]
[1760263354713,2.59100919,3859.5,3859.4,0.002]
[1760263354889,3.02840919,3859.5,3859.4,0.002]
[1760263355300,2.3574,3859.5,3859.0,0.002]
[1760263355495,4.51127775,3859.1,3859.0,0.002]
[1760263356000,4.94867775,3859.1,3859.0,0.002]
[1760263357698,1.92,3859.1,3859.0,0.002]
[1760263357912,4.51127775,3859.1,3859.0,0.002]
[1760263358313,4.51127775,3859.1,3858.6,0.002]
[1760263358314,2.59154637,3858.7,3858.6,0.002]
[1760263358553,4.51154637,3858.7,3858.6,0.002]
[1760263358929,4.94894637,3858.7,3858.6,0.002]
[1760263360618,2.59161353,3858.6,3858.5,1e-08]